[Event "Fredericia WIM 2022"]
[Site "Fredericia"]
[Date "2022.05.26"]
[Round "4.1"]
[White "Lach, Aleksandra"]
[Black "Dwilewicz, Katarzyna"]
[Result "1/2-1/2"]
[ECO "C50"]
[WhiteElo "2202"]
[BlackElo "2079"]
[Annotator "TA"]
[PlyCount "27"]
[EventDate "2022.05.25"]
[EventType "tourn"]
[EventCountry "DEN"]
[SourceTitle "playchess.com"]
[Source "ChessBase"]
[SourceQuality "1"]
[TimeControl "40/5400+30:1800+30"]

{[%evp 11,27,17,22,18,18,16,15,15,18,11,19,0,18,0,17,0,28,0]} 1. e4 {[%emt 0:00:50]} e5 {[%emt 0:00:44]} 2. Nf3 {[%emt 0:03:24]} Nc6 {[%emt 0:02:39]} 3. Bc4 {[%emt 0:01:16]} Bc5 {[%emt 0:00:42]} 4. O-O {[%emt 0:01:23]} Nf6 {[%emt 0:02:24]} 5. d3 {[%emt 0:00:54]} d6 {[%emt 0:01:42]} 6. c3 {[%emt 0:02:09]} h6 {[%emt 0:07:01]} 7. b4 {[%emt 0:07:31] C54: Giuoco Piano: 4 c3 Nf6, main lines with 5 d4 and 5 d3.} Bb6 {[%emt 0:00:20]} 8. Bb3 {[%emt 0:00:18] 8.Nbd2 is the modern continuation.} a6 {[%emt 0:04:22]} 9. Nbd2 {[%emt 0:02:43] The position is equal.} O-O {[%emt 0:04:12]} 10. Re1 {[%emt 0:02:46] [#]} Ng4 $146 {[%emt 0:05:08]} ({Predecessor:} 10... Re8 11. a4 Be6 12. Bc2 Qd7 13. a5 Ba7 14. Ba4 Bg4 15. h3 Bxf3 16. Nxf3 d5 17. exd5 Nxd5 18. Bb2 Nf4 19. d4 exd4 20. cxd4 Rxe1+ 21. Qxe1 {½-½ (43) Cunha,E (2169)-Elci,P (2276) Rio de Janeiro 2013}) 11. Rf1 {[%emt 0:03:15]} Nf6 {[%emt 0:02:26]} 12. Re1 {[%emt 0:02:43]} Ng4 {[%emt 0:01:02]} 13. Rf1 {[%emt 0:00:06]} Nf6 {[%emt 0:01:09]} 14. Re1 {[%emt 0:00:10] A balanced but interesting game.  Weighted Error Value: White=0.10 (very precise) /Black=0.01 (flawless)} 1/2-1/2

[Event "Fredericia WIM 2022"]
[Site "Fredericia"]
[Date "2022.05.26"]
[Round "4.2"]
[White "Doluhanova, Evgeniya"]
[Black "Durrfeld, Sofie Bech"]
[Result "1-0"]
[ECO "A20"]
[WhiteElo "2270"]
[BlackElo "1773"]
[Annotator "TA"]
[PlyCount "97"]
[EventDate "2022.05.25"]
[EventType "tourn"]
[EventCountry "DEN"]
[SourceTitle "playchess.com"]
[Source "ChessBase"]
[SourceQuality "1"]
[TimeControl "40/5400+30:1800+30"]

{[%evp 9,97,16,27,8,17,15,19,5,13,17,16,14,35,9,47,22,33,35,22,4,25,-4,90,86,94,117,125,134,162,157,250,190,200,178,253,217,231,226,210,144,259,235,375,362,482,477,479,472,462,437,432,339,338,329,312,303,352,324,333,333,323,335,490,481,592,576,682,673,871,788,987,1125,1000,974,862,788,6013,5089,29983,29984,29984,29985,29985,29986,29989,29990,29990,29991,29991,29992]} 1. c4 {[%emt 0:01:38]} e5 {[%emt 0:00:18]} 2. d3 {[%emt 0:00:07]} Bc5 {[%emt 0:01:11]} 3. Nf3 {[%emt 0:01:49]} Nc6 {[%emt 0:05:38]} 4. a3 {[%emt 0:00:32]} a6 {[%emt 0:01:38]} 5. Nc3 {[%emt 0:00:25]} d6 {[%emt 0:00:52]} 6. g3 {[%emt 0:02:28] A20: English Opening: 1...e5.} Nge7 {[%emt 0:02:28]} 7. Bg2 {[%emt 0:00:26]} O-O {[%emt 0:00:39]} 8. O-O {[%emt 0:00:27] The position is equal.} Ba7 {[%emt 0:02:22]} 9. b4 {[%emt 0:02:10]} Nd4 {[%emt 0:04:02]} 10. Nxd4 {[%emt 0:05:06]} Bxd4 {[%emt 0:00:10]} 11. Bd2 {[%emt 0:00:08]} f5 {[%emt 0:02:40] [#]} 12. Rc1 $146 {[%emt 0:02:22][%cal Oc4c5]} ({Predecessor:} 12. e3 Ba7 13. Nd5 Ng6 14. h4 c6 15. h5 Ne7 16. Nc3 Be6 17. b5 axb5 18. cxb5 {1-0 (48) Earle,D (1301)-Botea,D (1550) Kouty nad Desnou 2018}) 12... c6 {[%emt 0:02:37]} 13. e3 {[%emt 0:01:43]} Ba7 {[%emt 0:00:51]} 14. Ne2 {[%emt 0:01:13]} g5 {[%emt 0:06:03]} 15. c5 {[%emt 0:05:19]} f4 {[%emt 0:13:31]} (15... dxc5 $11 16. Qb3+ c4 17. Qxc4+ Rf7) 16. exf4 {[%emt 0:00:25] White stays focused until the end.} gxf4 {[%emt 0:00:44]} 17. Qb3+ {[%emt 0:06:24]} d5 {[%emt 0:01:14] [#]} 18. d4 $1 {[%emt 0:00:19] White is more active.} f3 {[%emt 0:14:06]} 19. Bxf3 {[%emt 0:00:13]} Bh3 {[%emt 0:00:36]} (19... Bb8 $16 20. Bg2 a5) 20. Bg2 {[%emt 0:02:00]} ({Much less strong is} 20. dxe5 $6 Bxf1 21. Rxf1 Ng6 $16) 20... Bxg2 {[%emt 0:01:36]} 21. Kxg2 {[%emt 0:00:15]} Ng6 {[%emt 0:01:01]} (21... Bb8 $142 22. dxe5 Bxe5) 22. dxe5 {[%emt 0:01:11]} Nxe5 {[%emt 0:00:41]} 23. Nf4 {[%emt 0:00:38] Rce1 is the strong threat.} Qd7 {[%emt 0:01:32]} 24. Qc3 {[%emt 0:05:27]} Rae8 {[%emt 0:00:57]} (24... Nc4 $16 25. Rce1 Bb8) 25. Qd4 $18 {[%emt 0:00:28]} Bb8 {[%emt 0:01:22]} (25... Qf5 $142 26. Rce1 Ng6 27. Nxg6 Qxg6) 26. Bc3 {[%emt 0:01:30]} Rxf4 {[%emt 0:09:44]} 27. Qxf4 {[%emt 0:00:48]} (27. gxf4 $2 {too greedy.} Qg4+ 28. Kh1 Qf3+ 29. Kg1 {[#]} Kf7 $1 $19) 27... Ng6 {[%emt 0:01:35]} 28. Qg5 {[%emt 0:03:03]} d4 {[%emt 0:01:14]} 29. Rcd1 {[%emt 0:01:33]} Re5 {[%emt 0:01:27]} 30. Rxd4 {[%emt 0:02:39]} Qxd4 {[%emt 0:04:47]} 31. Qxg6+ {[%emt 0:00:06]} hxg6 {[%emt 0:00:07]} 32. Bxd4 {[%emt 0:00:03][%mdl 4096] Endgame KRB-KRB} Rd5 {[%emt 0:00:32] [#]} 33. Re1 $1 {[%emt 0:01:22] Threatens to win with Re8+.} Kf7 {[%emt 0:00:52] Prevents Re8.} 34. Re4 {[%emt 0:00:05]} Bc7 {[%emt 0:00:45]} 35. h4 {[%emt 0:00:14]} a5 {[%emt 0:00:51]} (35... Bd8 $142 36. Kf3 Bc7) 36. g4 {[%emt 0:00:22][%cal Bg3g4,Bg4g5][%mdl 32]} axb4 {[%emt 0:00:22]} 37. axb4 {[%emt 0:00:04]} Bd8 {[%emt 0:00:21]} 38. g5 {[%emt 0:00:34]} b6 {[%emt 0:01:13]} 39. cxb6 {[%emt 0:00:19]} Rb5 {[%emt 0:00:13]} 40. Bc5 {[%emt 0:00:09]} Bxb6 {[%emt 0:00:33]} 41. Re7+ {[%emt 0:31:40]} Kg8 {[%emt 0:30:47]} 42. Rb7 {[%emt 0:01:27]} Bxc5 {[%emt 0:00:44]} 43. Rxb5 {[%emt 0:00:12]} cxb5 {[%emt 0:00:13]} 44. bxc5 {[%emt 0:00:06][%cal Bb4c5,Bc5c6,Bc6c7][%mdl 32] KP-KP. White mates.} Kf7 {[%emt 0:00:13]} 45. c6 {[%emt 0:01:09]} Ke6 {[%emt 0:00:22]} 46. h5 {[%emt 0:00:25][%cal Bh4h5,Bh5g6,Bg6g7][%mdl 32]} b4 {[%emt 0:00:44]} 47. hxg6 {[%emt 0:00:26]} b3 {[%emt 0:00:14]} 48. g7 {[%emt 0:00:08]} Kf7 {[%emt 0:00:15]} 49. c7 {[%emt 0:00:09] Weighted Error Value: White=0.12 (very precise) /Black=0.49} 1-0

[Event "Fredericia WIM 2022"]
[Site "Fredericia"]
[Date "2022.05.26"]
[Round "4.3"]
[White "Andersson, Christin"]
[Black "Goossens, Hanne"]
[Result "1-0"]
[ECO "B56"]
[WhiteElo "2028"]
[BlackElo "2184"]
[Annotator "TA"]
[PlyCount "171"]
[EventDate "2022.05.25"]
[EventType "tourn"]
[EventCountry "DEN"]
[SourceTitle "playchess.com"]
[Source "ChessBase"]
[SourceQuality "1"]
[TimeControl "40/5400+30:1800+30"]

{[%evp 14,171,27,0,0,0,13,11,21,21,20,18,29,22,37,0,0,-8,-7,-25,0,-44,-46,-33,-21,-17,-20,-62,-59,-58,-46,-42,-41,-64,-50,-98,-75,-85,-36,-70,-74,-147,-162,-202,-71,-62,-56,-250,-10,-25,88,90,86,91,112,112,106,106,116,105,116,112,120,119,120,70,70,70,93,93,127,97,125,74,127,120,120,75,77,80,85,85,85,85,85,85,85,85,85,85,85,85,544,539,493,359,359,85,359,85,192,85,158,156,359,0,125,85,85,85,85,75,1000,75,125,103,359,103,353,353,353,353,1242,734,8614,5480,5506,5514,5422,5189,29969,29970,29970,29971,29971,29972,29972,29972,29974,29973,29973,29972,29974,29972,29972,29973,29975,29970,29974,0,29974,29975,29975,29976,29973,29974,29969,12843,29983,29984]} 1. e4 {[%emt 0:00:02]} c5 {[%emt 0:00:05]} 2. Nf3 {[%emt 0:00:06]} Nc6 {[%emt 0:00:06]} 3. d4 {[%emt 0:00:08]} cxd4 {[%emt 0:00:06]} 4. Nxd4 {[%emt 0:00:05]} Nf6 {[%emt 0:00:16]} 5. Nc3 {[%emt 0:00:26]} d6 {[%emt 0:00:13]} 6. Bb5 {[%emt 0:00:49]} Bd7 {[%emt 0:01:21]} 7. O-O {[%emt 0:00:27]} e6 {[%emt 0:04:21] now supersedes 7...g6.} 8. Re1 {[%emt 0:02:03] is the legacy move (8.Nxc6).} Be7 {[%emt 0:01:04] B56: Classical Sicilian: Unusual Lines.} 9. Nxc6 {[%emt 0:00:51]} bxc6 {[%emt 0:02:01]} 10. Ba4 {[%emt 0:01:33]} e5 {[%emt 0:02:04] The position is equal.} 11. Bg5 {[%emt 0:00:57]} Qc7 {[%emt 0:08:43]} 12. Qd3 {[%emt 0:02:56] [#]} h6 $146 {[%emt 0:01:01]} ({Predecessor:} 12... O-O 13. Rad1 Rad8 14. Bxf6 Bxf6 15. Qc4 Rc8 16. Bb3 Kh8 17. Ne2 Rcd8 18. Nc3 Rc8 {1-0 (34) Kutzner,J (2043)-Moser,A (2178) Solingen 2017}) 13. Bxf6 {[%emt 0:02:20]} Bxf6 {[%emt 0:01:20]} 14. Rad1 {[%emt 0:02:20]} Be7 {[%emt 0:00:26]} 15. Ne2 {[%emt 0:02:01]} O-O {[%emt 0:03:35]} 16. Ng3 {[%emt 0:01:43]} g6 {[%emt 0:04:19]} 17. Ne2 {[%emt 0:01:48]} Qb6 {[%emt 0:06:53]} 18. Bb3 {[%emt 0:00:48]} a5 {[%emt 0:02:08]} 19. Nc3 {[%emt 0:02:47]} Kg7 {[%emt 0:01:26]} 20. Qe3 {[%emt 0:04:03]} Qxe3 {[%emt 0:02:32]} (20... Qa7 {is more complex.} 21. Qg3 f5 22. h3 Rab8) 21. Rxe3 {[%emt 0:02:43]} f5 {[%emt 0:00:46]} 22. exf5 {[%emt 0:03:06]} gxf5 {[%emt 0:04:38]} 23. Ba4 {[%emt 0:03:43][%cal Oc3d5]} Rad8 {[%emt 0:03:58]} 24. Red3 {[%emt 0:02:31]} (24. a3 $15 {feels stronger.}) 24... d5 $17 {[%emt 0:05:46]} 25. Ne2 {[%emt 0:01:16]} Kf6 {[%emt 0:03:08]} ({Black should play} 25... Rb8 $17 26. Rb3 Rxb3 27. axb3 f4) 26. c4 {[%emt 0:02:19]} d4 {[%emt 0:01:05]} 27. Kf1 {[%emt 0:05:23]} (27. Rh3 $142) 27... Be6 {[%emt 0:11:13]} 28. f4 {[%emt 0:05:10]} c5 {[%emt 0:01:50]} (28... Bxc4 $19 29. fxe5+ Kxe5) 29. fxe5+ {[%emt 0:00:35]} Kxe5 {[%emt 0:00:07]} 30. Bb3 {[%emt 0:01:57] [#]} (30. Bb5 $15) 30... f4 $2 {[%emt 0:03:58]} ({Better is} 30... Bg5 $1 $19 {Hoping for ...Be3.} 31. Re1 Be3) 31. Re1 $11 {[%emt 0:01:55]} Kd6 {[%emt 0:13:28] [#]} ({Don't take} 31... Bh4 32. Nxd4+ Bxe1 33. Nc6+ Kf6 34. Nxd8 $16) (31... Bg8 $11 {keeps the balance.}) 32. Nxd4 $1 $16 {[%emt 0:01:10]} cxd4 {[%emt 0:02:30]} 33. Rxd4+ {[%emt 0:00:06]} Kc7 {[%emt 0:01:47]} 34. Rxd8 {[%emt 0:00:27]} ({Worse is} 34. Rxe6 Rxd4 35. Rxe7+ Kd6 $17) 34... Bxc4+ {[%emt 0:00:25]} 35. Bxc4 {[%emt 0:00:24]} Bxd8 {[%emt 0:00:37][%mdl 4096] Endgame KRB-KRB} 36. Re4 {[%emt 0:01:35]} Rf6 {[%emt 0:01:01]} 37. Ke2 {[%emt 0:01:09]} Kb6 {[%emt 0:01:16]} 38. Kf3 {[%emt 0:01:17]} Bc7 {[%emt 0:00:08]} 39. Re6+ {[%emt 0:01:24]} (39. Re7 $16) 39... Rxe6 $14 {[%emt 0:00:07]} 40. Bxe6 {[%emt 0:00:04] KB-KB} Bd6 {[%emt 0:04:59]} 41. h3 {[%emt 0:30:22]} Kc7 {[%emt 0:30:33]} 42. Ke4 {[%emt 0:00:58]} Kd8 {[%emt 0:00:58]} 43. Kd5 {[%emt 0:00:36]} (43. Bg4 $142) 43... Ke7 {[%emt 0:00:32]} (43... Kc7 $142) 44. Bg4 {[%emt 0:00:36]} Bb4 {[%emt 0:00:26]} 45. Kc6 {[%emt 0:01:51]} Bd2 {[%emt 0:00:20]} 46. a3 {[%emt 0:01:14]} a4 {[%emt 0:02:38]} 47. Kb5 {[%emt 0:02:23]} Bc1 {[%emt 0:00:32]} 48. Kxa4 {[%emt 0:00:34]} Bxb2 {[%emt 0:00:05]} 49. Kb3 {[%emt 0:00:41]} Bc1 {[%emt 0:00:23]} 50. a4 {[%emt 0:00:06]} Bd2 {[%emt 0:00:16]} 51. Kc2 {[%emt 0:00:22]} Ba5 {[%emt 0:00:25]} 52. Kd3 {[%emt 0:00:16] Threatens to win with Ke4.} Kd6 $2 {[%emt 0:00:34][%mdl 8192]} (52... Kf6 $16 {is a better chance.}) 53. Ke4 $18 {[%emt 0:01:06]} Bd2 {[%emt 0:00:25]} 54. Bf3 {[%emt 0:00:44]} Ke6 {[%emt 0:00:22]} 55. Kd4 $2 {[%emt 0:01:38]} (55. Be2 $18 Be1 56. Kxf4) 55... Kd6 $2 {[%emt 0:00:11][%mdl 8192]} (55... Kf6 $16) 56. Kc4 $2 {[%emt 0:01:24]} (56. Kd3 $18 {is more deadly.} Be1 57. Ke4) 56... Be3 {[%emt 0:00:47] [#]} (56... Be1 $16 {might work better.}) 57. a5 {[%emt 0:00:17]} (57. Kd3 $1 $18 {and the rest is easy.}) 57... Ba7 {[%emt 0:00:24]} ({Black should try} 57... Bf2) 58. Kd3 $16 {[%emt 0:00:32]} Ke5 $2 {[%emt 0:00:07]} (58... Kc5 $16 59. a6 Kb6) 59. Kc4 $2 {[%emt 0:01:33]} (59. Be2 $18 {Black must now prevent a6.} Kd5 60. a6) 59... Kd6 $1 {[%emt 0:00:12]} 60. Kb5 {[%emt 0:01:06]} Kc7 {[%emt 0:00:22]} 61. a6 {[%emt 0:00:51]} Bg1 {[%emt 0:00:42]} 62. Kc4 {[%emt 0:00:56]} Kd6 $2 {[%emt 0:00:11][%mdl 8192]} (62... Kb6 $16) 63. Be4 $2 {[%emt 0:00:58]} (63. Kd3 $18 {is the precise move to win.} Ke5 64. Kc4) 63... Ba7 {[%emt 0:01:06]} (63... Kc7 $142) 64. Bb7 {[%emt 0:00:53] Strongly threatening Kd3.} Ke5 $2 {[%emt 0:01:07][%mdl 8192]} (64... h5 $16) 65. Bc8 $2 {[%emt 0:01:11]} (65. Kd3 $18 {and White stays clearly on top. aiming for Ke2.} Bd4 66. Kc4) 65... Bg1 $2 {[%emt 0:00:52]} (65... h5 $16 66. Bd7 h4) 66. Kd3 $18 {[%emt 0:01:25]} Ba7 {[%emt 0:00:10]} 67. Ke2 {[%emt 0:00:38] Kf3 is the strong threat.} Bb8 $2 {[%emt 0:01:23]} (67... h5 68. h4 Kd6) 68. Kf3 {[%emt 0:00:18]} Kf6 {[%emt 0:00:45]} 69. Ke4 {[%emt 0:00:26]} Ke7 {[%emt 0:00:39]} 70. Kf5 {[%emt 0:00:48]} Kf7 {[%emt 0:00:19]} 71. Bb7 {[%emt 0:00:45]} Ke7 {[%emt 0:00:50]} 72. Kg6 {[%emt 0:00:19]} Ba7 {[%emt 0:00:13]} 73. Kxh6 {[%emt 0:01:17]} Kf6 {[%emt 0:00:11]} 74. Be4 {[%emt 0:00:20]} Be3 {[%emt 0:00:21]} 75. Kh7 {[%emt 0:00:43]} Kf7 {[%emt 0:00:24]} 76. Bd5+ {[%emt 0:00:15]} Kf6 {[%emt 0:00:16]} 77. Kg8 {[%emt 0:00:56]} Bc5 {[%emt 0:00:10]} 78. Be4 {[%emt 0:01:19]} Ke5 {[%emt 0:00:33]} 79. Bd3 {[%emt 0:00:58]} Kf6 {[%emt 0:00:07]} 80. Kh7 {[%emt 0:00:35]} Be3 {[%emt 0:00:37]} 81. Be4 $2 {[%emt 0:00:46]} (81. h4 {mates} Kf7 82. h5 Kf6 83. Be2 Kf5 84. Kg7 Kg5 85. Kf8 Bd4 86. Ke7) 81... Ba7 $2 {[%emt 0:00:19][%mdl 8192]} (81... Kf7 $11) 82. h4 {[%emt 0:01:55][%cal Bh3h4,Bh4h5,Bh5h6][%mdl 32]} Be3 {[%emt 0:00:34]} 83. h5 {[%emt 0:01:23]} Kg5 {[%emt 0:00:57]} 84. Bg6 {[%emt 0:00:41]} Bd4 {[%emt 0:00:32]} 85. Kg8 {[%emt 0:00:58] Threatening mate with Kf7.} Kf6 {[%emt 0:00:41] [#]} 86. h6 $1 {[%emt 0:00:51] Quite a comeback for White.  Weighted Error Value: White=0.51/Black=0.51} 1-0

[Event "Fredericia WIM 2022"]
[Site "Fredericia"]
[Date "2022.05.27"]
[Round "5.1"]
[White "Durrfeld, Sofie Bech"]
[Black "Lach, Aleksandra"]
[Result "0-1"]
[ECO "B24"]
[WhiteElo "1773"]
[BlackElo "2202"]
[Annotator "TA"]
[PlyCount "78"]
[EventDate "2022.05.25"]
[EventType "tourn"]
[EventCountry "DEN"]
[SourceTitle "playchess.com"]
[Source "ChessBase"]
[SourceQuality "1"]
[TimeControl "40/5400+30:1800+30"]

{[%evp 9,78,0,19,0,0,0,22,-35,26,17,53,-47,5,8,0,0,45,-18,102,16,19,-21,-26,-7,-4,-37,-23,-19,-23,-58,-36,-46,-44,-43,-43,-41,-51,-56,-40,-100,-96,-222,-158,-195,-197,-195,0,0,26,22,87,0,0,-39,-41,-275,-275,-3275,-2367,-29980,-29981,-29983,-1588,-29972,-943,-937,-930,-29991,-29992,-29992,-29993]} 1. e4 {[%emt 0:00:03]} c5 {[%emt 0:00:21]} 2. Nc3 {[%emt 0:00:08]} Nc6 {[%emt 0:03:00]} 3. Bb5 {[%emt 0:01:01]} Nd4 {[%emt 0:00:16]} 4. Nf3 {[%emt 0:00:15]} a6 {[%emt 0:02:01]} 5. Bd3 {[%emt 0:02:00]} g6 {[%emt 0:04:26]} 6. Rb1 {[%emt 0:00:47] B23: Closed Sicilian: Lines without g3.} Nc6 {[%emt 0:02:56]} 7. a3 {[%emt 0:00:42]} b5 {[%emt 0:16:46] [#]} 8. e5 $146 {[%emt 0:07:08]} (8. b4 $11) ({Predecessor:} 8. b4 d6 9. Bb2 Bg7 10. Nd5 Nf6 11. c4 bxc4 12. Bxc4 cxb4 13. axb4 O-O 14. Nxf6+ exf6 {0-1 (76) Ibadov,D (2249)-Lintchevski,D (2567) Khanty-Mansiysk 2021}) 8... d5 {[%emt 0:20:51]} (8... f5 $15) 9. exd6 $1 $11 {[%emt 0:03:18]} Qxd6 {[%emt 0:00:27]} 10. O-O {[%emt 0:02:25]} ({Better is} 10. a4 $1 $14) 10... Nf6 {[%emt 0:06:20]} (10... f5 $1 $15) 11. Ne4 {[%emt 0:05:46]} Nxe4 {[%emt 0:06:11]} (11... Qd5 12. Nxf6+ exf6 13. Be4 $1 $16 {[%mdl 512]}) 12. Bxe4 {[%emt 0:00:10][%cal Od2d4]} Bb7 {[%emt 0:00:26]} 13. d4 {[%emt 0:01:35]} (13. b4) (13. b4 $14) 13... O-O-O {[%emt 0:04:06]} (13... Rd8 $11) 14. c3 {[%emt 0:05:42]} (14. d5 $16 {[%cal Od5c6]} Ne5 15. Bf4) 14... Bg7 {[%emt 0:04:33][%cal Rc5d4,Bf8g7,Bg7e5,Be5c7][%mdl 32]} 15. Be3 {[%emt 0:02:44]} f5 {[%emt 0:00:42]} 16. Bxc6 {[%emt 0:02:43]} Qxc6 {[%emt 0:00:25]} 17. Qe2 {[%emt 0:10:51]} e5 {[%emt 0:03:52]} 18. dxe5 {[%emt 0:04:25] [#]} Bxe5 $1 {[%emt 0:00:10]} 19. Rfd1 {[%emt 0:06:48]} (19. c4 Rhe8) 19... Rxd1+ {[%emt 0:03:21]} 20. Rxd1 {[%emt 0:01:26]} Bc7 {[%emt 0:03:55]} 21. c4 {[%emt 0:03:34]} f4 {[%emt 0:01:58] Strongly threatening ...Re8.} 22. Bd2 {[%emt 0:01:45]} Re8 {[%emt 0:02:34]} 23. Qf1 {[%emt 0:00:56]} g5 {[%emt 0:00:26][%cal Bg6g5,Bg5g4][%mdl 32]} 24. cxb5 {[%emt 0:03:27]} (24. h3 $1 $15) 24... axb5 $17 {[%emt 0:00:02]} 25. Rc1 {[%emt 0:02:03]} (25. h3 $17) 25... Rd8 {[%emt 0:02:26] Threatens to win with ...g4.} 26. Bc3 {[%emt 0:03:28]} g4 {[%emt 0:01:26]} 27. Ne5 {[%emt 0:08:36]} Qe4 {[%emt 0:01:25]} ({Black should try} 27... Qe6 $1 $19 {Hoping for ...b4.} 28. Re1 Rd5) 28. Re1 $11 {[%emt 0:03:28]} Qa4 {[%emt 0:00:49] aiming for ...f3.} (28... Qd5 $5 {[%cal Rb5b4]} 29. Nxg4 h5 $11) 29. Nf7 {[%emt 0:02:12]} Rf8 {[%emt 0:01:05] [#]} (29... Rg8 $11) 30. Re7 {[%emt 0:01:38]} (30. Qd3 $1 $16 {[%cal Oc3g7] Bg7! is the strong threat.} Qc4 31. Qxc4 (31. Nd6+ Bxd6 32. Qxd6 Rd8 $11) 31... bxc4 32. Re7) 30... Bd5 $36 {[%emt 0:01:00][%mdl 2048] Black has some pressure. This bishop pair is nice.} 31. Ne5 {[%emt 0:03:47]} (31. Qd3 $5 Rxf7 32. Re8+ (32. Rxf7 $2 Bxf7 33. h3 g3 $19) 32... Kd7 33. Re5 Bxe5 34. Qxd5+ Ke8 35. Qxe5+ Re7 36. Qh5+ Kd7 37. Qd5+ Ke8 38. Qh5+ Kd8 39. Qd5+ Ke8 40. Qh5+ $11) 31... Rd8 $1 {[%emt 0:02:05]} 32. Qd3 $2 {[%emt 0:05:47] [#]} ({Don't go for} 32. Rxh7 $2 Be4 33. b3 Qxa3 34. Rxc7+ Kxc7 $19) ({Wrong is} 32. Nxg4 $2 Bc4 33. Qe1 Rd1 $19) (32. f3 $1 $15) 32... Be4 $1 $19 {[%emt 0:01:07]} 33. Rxc7+ {[%emt 0:00:48]} (33. Qe2 Qd1+ 34. Qe1 Qxe1+ 35. Bxe1) 33... Kxc7 {[%emt 0:00:10]} 34. Qf1 {[%emt 0:02:59]} Rd1 {[%emt 0:00:32]} 35. Be1 {[%emt 0:00:10]} Qd4 {[%emt 0:02:05]} (35... Qc2 $142 36. h3 Qc1 37. Nxg4 Rxe1 38. Qxe1 Qxe1+ 39. Kh2 Qd2 40. Kg1 f3 41. g3 Qd1+ 42. Kh2 Qf1 43. Ne3 Qxf2+ 44. Kh1 Qxe3 45. h4 Qf2 46. h5 Qg2#) 36. Nxg4 {[%emt 0:02:03]} Qd3 {[%emt 0:02:52]} (36... b4 $142 37. g3 Bd3 38. gxf4 Bxf1 39. Kxf1 bxa3 40. bxa3 Qc4+ 41. Kg2 Rxe1 42. h3 Qxf4 43. a4 Re2 44. a5 h5 45. Kf1 Qf3 46. h4 hxg4 47. Kg1 Qxf2+ 48. Kh1 Qh2#) 37. f3 {[%emt 0:01:21]} Qb1 {[%emt 0:00:10][%csl LRb2,LRe1]} 38. Kf2 {[%emt 0:00:29]} Bd3 {[%emt 0:00:19]} 39. Ba5+ {[%emt 0:01:01]} Kb7 {[%emt 0:00:16] Weighted Error Value: White=0.93/Black=0.53} 0-1